fUST/lending_fUST_20240228
["ID","MTS","AMOUNT","RATE_DAILY","PERIOD"]
[315552365,1709124643757,-598.33,0.0001996,2]
[315552367,1709124643766,-1035.24,0.0001996,2]
[315552369,1709124643775,-7468.34,0.0001996,2]
[315552371,1709124643785,-1165.13,0.0001996,2]
[315552373,1709124643794,-861.38,0.00019961,2]
[315552375,1709124643804,-500.0,0.00019961,2]
[315552377,1709124643814,-781.38,0.00019961,2]
[315552379,1709124643823,-500.0,0.00019961,2]
[315552381,1709124643832,-557.0,0.00019961,2]
[315552383,1709124643842,-500.0,0.00019961,2]
[315552385,1709124643851,-3241.28,0.00019961,2]
[315552387,1709124643861,-1144.31,0.00019961,2]
[315552389,1709124643871,-1206.63,0.00019961,2]
[315552391,1709124643880,-772.73,0.00019961,2]
[315552393,1709124643889,-500.0,0.0002,2]
[315552395,1709124643898,-153.0,0.0002,2]
[315552397,1709124643908,-166.666666,0.00020076,2]
[315552399,1709124643917,-4188.560696,0.00020199,2]
[315553266,1709124778021,-416.8222187,0.00018755,2]
[315553267,1709124778047,-583.1777813,0.00018799,2]
[315553270,1709124793022,-500.0,0.00018799,2]
[315553273,1709124799360,156.14520448,0.00015225,2]
[315553274,1709124799493,798.07864933,0.00015225,2]
[315553282,1709124821479,532.05243288,0.00015225,2]
[315553289,1709124839535,443.3770274,0.00015225,2]
[315553290,1709124842067,169.83284582,0.00015225,2]
[315553292,1709124843286,155.09615962,0.00015225,2]
[315553293,1709124843845,155.09615962,0.00015225,2]
[315553296,1709124847608,155.09615962,0.00015225,2]
[315553299,1709124855173,2369.10734019,0.00015225,2]
[315553302,1709124858075,155.09615962,0.00015225,2]
[315553303,1709124861300,155.09615962,0.00015225,2]
[315553304,1709124861572,906.23605398,0.00018519,7]
[315553305,1709124863490,443.3770274,0.00015225,2]
[315553306,1709124865845,211.33630922,0.00015225,2]
[315553310,1709124869562,155.09615962,0.00015225,2]
[315553311,1709124871159,1579.40489346,0.00015225,2]
[315553313,1709124876109,155.09615962,0.00015225,2]
[315553315,1709124879299,217.02508763,0.00015225,2]
[315553316,1709124885317,250.0,0.00017567,2]
[315553317,1709124885624,193.64516679,0.00015225,2]
[315553320,1709124887499,230.99943128,0.00015225,2]
[315553323,1709124893294,1316.17074455,0.00015225,2]
[315553324,1709124896086,155.09615962,0.00015225,2]
[315553330,1709124909494,230.99943128,0.00015225,2]
[315553332,1709124916128,235.87895253,0.00015225,2]
[315553333,1709124917160,1316.17074455,0.00015225,2]
[315553337,1709124927496,230.99943128,0.00015225,2]
[315553367,1709124935177,685.72495791,0.00015225,2]
[315553372,1709124949506,230.99943128,0.00015225,2]
[315553374,1709124951191,685.72495791,0.00015225,2]
[315553380,1709124967188,685.72495791,0.00015225,2]
[315553381,1709124969514,230.99943128,0.00015225,2]
[315553389,1709124987510,230.99943128,0.00015225,2]
[315553391,1709124989195,685.72495791,0.00015225,2]
[315553395,1709124992567,604.15736932,0.00018502,7]
[315553399,1709125007198,685.72495791,0.00015225,2]
[315553400,1709125007517,230.99943128,0.00015225,2]
[315553408,1709125029526,230.99943128,0.00015225,2]
[315553413,1709125045522,368.88968679,0.00015225,2]
[315553418,1709125067760,685.72495791,0.00015225,2]
[315553420,1709125081733,391.58330434,0.00015225,2]
[315553421,1709125081765,294.14165357,0.00015225,2]
[315553423,1709125093483,151.09367808,0.00021541,30]
[315553424,1709125093600,151.09367808,0.0002111,120]
[315553425,1709125094984,5764.98220567,0.00017,30]
[315553427,1709125107711,685.72495791,0.00015225,2]
[315553429,1709125121585,503.46447443,0.00018485,7]
[315553430,1709125123732,685.72495791,0.00017,2]
[315553431,1709125127882,23334.40843061,0.00017,2]
[315553432,1709125127911,80308.67806831,0.00017,2]
[315553434,1709125141727,409.32910157,0.00017,2]
[315553435,1709125145599,103643.08649892,0.00017,2]
[315553437,1709125147840,184.45375071,0.00016999,2]
[315553438,1709125154184,360.71436309,0.00016998,2]
[315553439,1709125165607,103643.08649892,0.00017,2]
[315553440,1709125174413,310.956948,0.00017483,2]
[315553441,1709125181597,103643.08649892,0.00016998,2]
[315553442,1709125199614,103643.08649892,0.00016998,2]
[315553443,1709125221655,89927.16666542,0.00016998,2]
[315553444,1709125221691,9000.0,0.00016998,2]
[315553445,1709125221725,4715.9198335,0.00016998,2]
[315553446,1709125230070,2323.3521325,0.0001741,2]
[315553447,1709125237603,1960.728034,0.00016998,2]
[315553448,1709125237633,9000.0,0.00016998,2]
[315553449,1709125237664,9000.0,0.00016998,2]
[315553450,1709125237694,9000.0,0.00016998,2]
[315553451,1709125237725,9000.0,0.00016998,2]
[315553452,1709125237756,9000.0,0.00016998,2]
[315553453,1709125258615,262.30499118,0.00018489,7]
[315553454,1709125295352,9000.0,0.00016247,2]
[315553455,1709125295383,9000.0,0.00016247,2]
[315553456,1709125295416,6900.0,0.00016247,2]
[315553457,1709125311442,2100.0,0.00015995,2]
[315553458,1709125311472,704.4497601,0.00015995,2]
[315553459,1709125321703,216.3337696,0.00016378,2]
[315553460,1709125340615,2893.74227347,0.00016378,2]
[315553461,1709125340646,9000.0,0.00016378,2]
[315553462,1709125340682,9000.0,0.00016378,2]
[315553463,1709125340712,9000.0,0.00016378,2]
[315553464,1709125371533,-172.418598,0.00028493,35]
[315553465,1709125371558,-172.418598,0.00028493,52]
[315553466,1709125371582,-172.418598,0.00028493,69]
[315553467,1709125371606,-172.418598,0.00028493,86]
[315553468,1709125371631,-172.418598,0.00028493,103]
[315553469,1709125371660,-172.418598,0.00028493,119]
[315553470,1709125371686,-7642.52819588,0.0003,120]
[315553471,1709125371718,-2417.49884929,0.00032653,120]
[315553472,1709125371751,-200.0,0.00035,120]
[315553473,1709125371774,-201.11035135,0.00035,120]
[315553474,1709125391862,262.30499118,0.00018402,7]
[315553476,1709125462376,262.30499118,0.00018292,7]
[315553479,1709125504960,151.11031053,0.00021048,30]
[315553480,1709125528427,250.0,0.00015359,2]
[315553481,1709125542903,262.30499118,0.00018292,7]
[315553482,1709125621440,262.30499118,0.00018292,7]
[315553483,1709125622971,744.472856,0.00015347,2]
[315553484,1709125628878,-210.14412167,0.0001634,2]
[315553485,1709125628898,-164.372374,0.0001634,2]
[315553486,1709125628919,-181.79250638,0.00016341,2]
[315553487,1709125628940,-276.15217205,0.00016341,2]
[315553488,1709125628960,-155.15049598,0.00016342,2]
[315553489,1709125628980,-369.50140787,0.00016342,2]
[315553490,1709125629000,-358.59913231,0.00016342,2]
[315553491,1709125629021,-8007.23444251,0.00016342,2]
[315553492,1709125630270,1384.55456736,0.00016339,2]
[315553493,1709125630460,228.14154743,0.00016339,2]
[315553494,1709125633902,155.15515516,0.00016342,2]
[315553495,1709125634434,668.00158787,0.00016342,2]
[315553496,1709125636421,7295.50780953,0.00016342,2]
[315553497,1709125636599,155.15515516,0.00016342,2]
[315553498,1709125637944,9455.62900842,0.000188,5]
[315553499,1709125638034,155.15515516,0.00016342,2]
[315553500,1709125638248,240.47624206,0.00016342,2]
[315553501,1709125639453,1603.92253255,0.00016342,2]
[315553502,1709125640199,155.15515516,0.00016342,2]
[315553503,1709125642998,155.15515516,0.00016342,2]
[315553504,1709125646190,744.34995698,0.00016341,2]
[315553505,1709125646857,592.46406366,0.00016341,2]
[315553506,1709125648565,190.35514618,0.00016341,2]
[315553507,1709125650273,216.88765438,0.00016342,2]
[315553508,1709125651776,155.15515516,0.00016342,2]
[315553509,1709125655216,155.15515516,0.00016342,2]
[315553510,1709125655682,3576.14838661,0.00016342,2]
[315553511,1709125656200,193.96080741,0.00016342,2]
[315553512,1709125656226,1823.37758989,0.00016342,2]
[315553513,1709125656743,441.3341692,0.00016342,2]
[315553516,1709125660627,27218.98813795,0.000188,5]
[315553517,1709125668144,516.38813872,0.00016249,2]
[315553518,1709125701906,262.30499118,0.00018297,7]
[315553522,1709125731756,7489.13900528,0.00016,2]
[315553523,1709125731793,9000.0,0.00016,2]
[315553524,1709125731829,9000.0,0.00016,2]
[315553525,1709125731864,9000.0,0.00016,2]
[315553527,1709125747182,1870.020502,0.00015512,2]
[315553531,1709125776422,262.30499118,0.0001829,7]
[315553534,1709125797285,160.12079,0.0001554,2]
[315553537,1709125828946,590.0226153,0.00015261,2]
[315553552,1709125832122,-181.40451736,0.00015995,2]
[315553553,1709125832132,-155.15515516,0.00015996,2]
[315553554,1709125832141,-1859.68441461,0.00015996,2]
[315553555,1709125832150,-2485.16933651,0.00015997,2]
[315553556,1709125832159,-300.0,0.00015999,2]
[315553557,1709125832168,-1416.11850283,0.00015999,2]
[315553558,1709125832180,-399.55349514,0.00015999,2]
[315553559,1709125832192,-4751.54910424,0.00015999,2]
[315553560,1709125832203,-2561.08695129,0.00015999,2]
[315553561,1709125832215,-618.09274011,0.00015999,2]
[315553562,1709125832226,-42879.97036123,0.00015999,2]
[315553563,1709125832236,-98166.80005789,0.00016,2]
[315553566,1709125832247,-4259.26597165,0.00016342,2]
[315553567,1709125832256,-661.38050887,0.00016364,2]
[315553569,1709125832265,-516.38813872,0.00017002,2]
[315553571,1709125832274,-340.2397206,0.00017099,2]
[315553573,1709125832283,-420.0,0.00017492,2]
[315553575,1709125832292,-1603.92253255,0.00017751,2]
[315553577,1709125832302,-592.46406366,0.00017751,2]
[315553579,1709125832311,-164.372374,0.00017752,2]
[315553581,1709125832321,-155.15515516,0.00017752,2]
[315553583,1709125832330,-155.15515516,0.00017752,2]
[315553585,1709125832339,-923.03637824,0.00017752,2]
[315553587,1709125832348,-155.15515516,0.00017752,2]
[315553589,1709125832357,-246.33427191,0.00017752,2]
[315553591,1709125832366,-155.15515516,0.00017753,2]
[315553593,1709125832375,-556.66798989,0.00017753,2]
[315553595,1709125832384,-298.83261026,0.00017753,2]
[315553597,1709125832394,-184.10144803,0.00017754,2]
[315553599,1709125832403,-190.11795619,0.00017754,2]
[315553601,1709125832412,-516.38813872,0.00017755,2]
[315553603,1709125832421,-4863.67187302,0.00017998,2]
[315553605,1709125832431,-155.15515516,0.00017998,2]
[315553607,1709125832440,-18810.28390562,0.00018,2]
[315553609,1709125832449,-1215.58505992,0.00018292,2]
[315553611,1709125832459,-155.15515516,0.00018293,2]
[315553613,1709125832468,-155.15515516,0.00018293,2]
[315553615,1709125832478,-155.15515516,0.00018293,2]
[315553617,1709125832487,-155.15515516,0.00018296,2]
[315553619,1709125832498,-744.34995698,0.00018296,2]
[315553621,1709125832508,-155.15515516,0.00018297,2]
[315553623,1709125832517,-200.39686839,0.00018298,2]
[315553625,1709125832527,-155.40200252,0.00018299,2]
[315553627,1709125832537,-186.59900576,0.00018403,2]
[315553629,1709125832546,-516.38813872,0.00018508,2]
[315553631,1709125832555,-151.66681833,0.00018656,2]
[315553633,1709125832564,-597.9525374,0.000188,2]
[315553635,1709125832573,-1462.6675413,0.000188,5]
[315553637,1709125832582,-240.1938955,0.000189,2]
[315553638,1709125832592,-155.15515516,0.00019,2]
[315553639,1709125832601,-368.4545173,0.00019034,2]
[315553641,1709125832610,-180.0,0.00019125,2]
[315553643,1709125832620,-1213.33454667,0.00019177,2]
[315553645,1709125832629,-500.0,0.00019178,2]
[315553647,1709125832639,-500.93898208,0.00019178,2]
[315553649,1709125832648,-500.49444279,0.00019178,2]
[315553651,1709125832659,-500.0,0.00019178,2]
[315553654,1709125832669,-163.19401364,0.00019178,2]
[315553655,1709125832678,-500.0,0.00019178,2]
[315553658,1709125832687,-500.0,0.00019178,2]
[315553660,1709125832697,-500.0,0.00019178,2]
[315553662,1709125832706,-500.0,0.00019178,2]
[315553663,1709125832715,-500.0,0.00019178,2]
[315553665,1709125832725,-531.08769693,0.00019178,2]
[315553668,1709125832735,-500.0,0.00019178,2]
[315553669,1709125832744,-500.0,0.00019178,2]
[315553672,1709125832756,-500.48761592,0.00019178,2]
[315553673,1709125832765,-500.0,0.00019178,2]
[315553676,1709125832776,-582.3869165,0.00019178,2]
[315553678,1709125832785,-500.0,0.00019178,2]
[315553680,1709125832795,-500.0,0.00019178,2]
[315553682,1709125832804,-500.0,0.00019178,2]
[315553684,1709125832815,-500.0,0.00019178,2]
[315553686,1709125832826,-500.0,0.00019178,2]
[315553688,1709125832835,-501.23294619,0.00019178,2]
[315553690,1709125832844,-500.0,0.00019178,2]
[315553692,1709125832853,-500.0,0.00019178,2]
[315553693,1709125832862,-506.24499821,0.00019178,2]
[315553695,1709125832871,-500.0,0.00019178,2]
[315553697,1709125832880,-500.0,0.00019178,2]
[315553699,1709125832890,-500.55412807,0.00019178,2]
[315553702,1709125832901,-500.0,0.00019178,2]
[315553703,1709125832912,-500.83615552,0.00019178,2]
[315553706,1709125832921,-500.0,0.00019178,2]
[315553707,1709125832931,-500.0,0.00019178,2]
[315553710,1709125832940,-500.0,0.00019178,2]
[315553712,1709125832949,-500.0,0.00019178,2]
[315553713,1709125832958,-500.0,0.00019178,2]
[315553715,1709125832967,-500.0,0.00019178,2]
[315553717,1709125832976,-500.0,0.00019178,2]
[315553719,1709125832985,-500.0,0.00019178,2]
[315553721,1709125832995,-501.51822053,0.00019178,2]
[315553723,1709125833006,-500.0,0.00019178,2]
[315553725,1709125833016,-502.09524739,0.00019178,2]
[315553727,1709125833026,-500.0,0.00019178,2]
[315553729,1709125833035,-500.0,0.00019178,2]
[315553731,1709125833045,-501.1649039,0.00019178,2]
[315553733,1709125833054,-500.0,0.00019178,2]
[315553735,1709125833063,-500.0,0.00019178,2]
[315553737,1709125833072,-417.76711785,0.00019178,2]
[315553739,1709125833081,-500.0,0.00019178,2]
[315553742,1709125833090,-502.35475423,0.00019178,2]
[315553744,1709125833100,-500.0,0.00019178,2]
[315553745,1709125833109,-500.0,0.00019178,2]
[315553747,1709125833118,-642.41,0.00019178,2]
[315553749,1709125833127,-500.0,0.00019178,2]
[315553751,1709125833137,-500.0,0.00019178,2]
[315553753,1709125833146,-500.0,0.00019178,2]
[315553755,1709125833155,-205.48972986,0.00019178,2]
[315553757,1709125833164,-500.0,0.00019178,2]
[315553759,1709125833173,-501.33966473,0.00019178,2]
[315553761,1709125833183,-500.63624964,0.00019178,2]
[315553763,1709125833193,-501.06876927,0.00019178,2]
[315553765,1709125833202,-500.0,0.00019178,2]
[315553767,1709125833211,-501.14446283,0.00019178,2]
[315553768,1709125833221,-553.25,0.00019178,2]
[315553769,1709125833231,-500.0,0.00019178,2]
[315553770,1709125833241,-500.0,0.00019178,2]
[315553771,1709125833253,-435.89086649,0.00019178,2]
[315553772,1709125833266,-500.61188878,0.00019178,2]
[315553773,1709125833276,-500.0,0.00019178,2]
[315553774,1709125833285,-500.0,0.00019178,2]
[315553775,1709125833294,-502.0883525,0.00019178,2]
[315553776,1709125833303,-500.0,0.00019178,2]
[315553777,1709125833312,-500.0,0.00019178,2]
[315553778,1709125833321,-500.0,0.00019178,2]
[315553779,1709125833331,-500.0,0.00019178,2]
[315553780,1709125833342,-500.0,0.00019178,2]
[315553782,1709125833351,-500.0,0.00019178,2]
[315553783,1709125833360,-501.25016165,0.00019178,2]
[315553785,1709125833371,-500.0,0.00019178,2]
[315553786,1709125833380,-8619.13,0.00019178,2]
[315553788,1709125833389,-500.0,0.00019178,2]
[315553790,1709125833399,-500.0,0.00019178,2]
[315553792,1709125833408,-503.49810621,0.00019178,2]
[315553794,1709125833417,-595.44437166,0.00019178,2]
[315553797,1709125833427,-500.79775915,0.00019178,2]
[315553798,1709125833436,-1279.81,0.00019178,2]
[315553801,1709125833445,-500.0,0.00019178,2]
[315553803,1709125833456,-500.0,0.00019178,2]
[315553805,1709125833465,-500.0,0.00019178,2]
[315553807,1709125833474,-501.3126259,0.00019178,2]
[315553808,1709125833483,-500.0,0.00019178,2]
[315553810,1709125833492,-500.0,0.00019178,2]
[315553812,1709125833505,-500.0,0.00019178,2]
[315553815,1709125833514,-500.0,0.00019178,2]
[315553817,1709125833523,-151.0,0.00019178,2]
[315553819,1709125833533,-500.0,0.00019178,2]
[315553821,1709125833542,-2648.46,0.00019178,2]
[315553823,1709125833552,-501.06561376,0.00019178,2]
[315553825,1709125833561,-500.0,0.00019178,2]
[315553827,1709125833570,-584.58611526,0.00019178,2]
[315553829,1709125833579,-500.0,0.00019178,2]
[315553831,1709125833589,-500.0,0.00019178,2]
[315553833,1709125833597,-540.79,0.00019178,2]
[315553835,1709125833607,-500.0,0.00019178,2]
[315553837,1709125833616,-500.0,0.00019178,2]
[315553838,1709125833625,-500.0,0.00019178,2]
[315553841,1709125833635,-501.01262498,0.00019178,2]
[315553842,1709125833644,-500.0,0.00019178,2]
[315553844,1709125833654,-533.67,0.00019178,2]
[315553847,1709125833664,-500.0,0.00019178,2]
[315553848,1709125833673,-171.80031986,0.00019178,2]
[315553851,1709125833684,-340.80164435,0.00019178,2]
[315553852,1709125833694,-500.0,0.00019178,2]
[315553854,1709125833703,-500.0,0.00019178,2]
[315553856,1709125833712,-501.20453731,0.00019178,2]
[315553858,1709125833721,-500.0,0.00019178,2]
[315553860,1709125833730,-500.0,0.00019178,2]
[315553862,1709125833739,-500.0,0.00019178,2]
[315553864,1709125833750,-500.0,0.00019178,2]
[315553866,1709125833761,-500.0,0.00019178,2]
[315553868,1709125833772,-480.76324187,0.00019178,2]
[315553870,1709125833782,-500.0,0.00019178,2]
[315553872,1709125833792,-501.05754814,0.00019178,2]
[315553874,1709125833801,-499.94674065,0.00019178,2]
[315553876,1709125833809,-640.51,0.00019178,2]
[315553878,1709125833822,-500.0,0.00019178,2]
[315553880,1709125833832,-512.35469621,0.00019178,2]
[315553882,1709125833841,-500.0,0.00019178,2]
[315553884,1709125833850,-500.96874667,0.00019178,2]
[315553886,1709125833860,-1262.22,0.00019178,2]
[315553888,1709125833868,-501.97017171,0.00019178,2]
[315553890,1709125833877,-893.02,0.00019178,2]
[315553891,1709125833887,-500.0,0.00019178,2]
[315553893,1709125833897,-500.0,0.00019178,2]
[315553895,1709125833906,-500.0,0.00019178,2]
[315553897,1709125833915,-500.0,0.00019178,2]
[315553899,1709125833925,-501.12404656,0.00019178,2]
[315553901,1709125833934,-500.0,0.00019178,2]
[315553903,1709125833943,-500.0,0.00019178,2]
[315553905,1709125833952,-500.58709093,0.00019178,2]
[315553907,1709125833962,-500.0,0.00019178,2]
[315553909,1709125833971,-500.0,0.00019178,2]
[315553910,1709125833981,-501.95237073,0.00019178,2]
[315553911,1709125833990,-500.0,0.00019178,2]
[315553912,1709125834001,-500.0,0.00019178,2]
[315553913,1709125834011,-500.0,0.00019178,2]
[315553914,1709125834021,-500.0,0.00019178,2]
[315553915,1709125834032,-500.0,0.00019178,2]
[315553916,1709125834042,-1112.94,0.00019178,2]
[315553917,1709125834052,-617.71,0.00019178,2]
[315553918,1709125834062,-7590.49,0.00019178,2]
[315553919,1709125834071,-500.0,0.00019178,2]
[315553920,1709125834081,-500.81546176,0.00019178,2]
[315553921,1709125834091,-500.0,0.00019178,2]
[315553922,1709125834101,-500.0,0.00019178,2]
[315553923,1709125834111,-500.0,0.00019178,2]
[315553924,1709125834120,-719.14,0.00019178,2]
[315553925,1709125834130,-500.0,0.00019178,2]
[315553928,1709125834240,-991.44,0.00019178,2]
[315553929,1709125834253,-214.18205637,0.00019178,2]
[315553930,1709125834262,-500.0,0.00019178,2]
[315553931,1709125834272,-500.86368941,0.00019178,2]
[315553932,1709125834281,-500.0,0.00019178,2]
[315553933,1709125834291,-629.05326636,0.00019178,2]
[315553934,1709125834301,-3785.19,0.00019178,2]
[315553935,1709125834311,-500.0,0.00019178,2]
[315553936,1709125834321,-500.0,0.00019178,2]
[315553937,1709125834330,-500.0,0.00019178,2]
[315553938,1709125834341,-500.0,0.00019178,2]
[315553939,1709125834351,-507.00886275,0.00019178,2]
[315553940,1709125834361,-616.07707314,0.00019178,2]
[315553941,1709125834370,-501.28836524,0.00019178,2]
[315553942,1709125834380,-501.71518943,0.00019178,2]
[315553943,1709125834389,-501.82289924,0.00019178,2]
[315553944,1709125834398,-500.0,0.00019178,2]
[315553945,1709125834408,-1406.5,0.00019178,2]
[315553946,1709125834417,-510.35524972,0.00019178,2]
[315553947,1709125834426,-187.82896193,0.00019178,2]
[315553948,1709125834436,-501.95700991,0.00019178,2]
[315553949,1709125834449,-500.0,0.00019178,2]
[315553950,1709125834458,-500.0,0.00019178,2]
[315553951,1709125834469,-500.0,0.00019178,2]
[315553952,1709125834478,-500.0,0.00019178,2]
[315553953,1709125834487,-500.47334013,0.00019178,2]
[315553954,1709125834496,-500.0,0.00019178,2]
[315553955,1709125834507,-500.0,0.00019178,2]
[315553956,1709125834516,-500.0,0.00019178,2]
[315553957,1709125834525,-500.93155288,0.00019178,2]
[315553958,1709125834534,-500.0,0.00019178,2]
[315553959,1709125834544,-498.96728137,0.00019178,2]
[315553960,1709125834553,-1258.42,0.00019178,2]
[315553961,1709125834562,-583.5360657,0.00019178,2]
[315553962,1709125834572,-500.0,0.00019178,2]
[315553963,1709125834581,-500.0,0.00019178,2]
[315553964,1709125834591,-501.66583531,0.00019178,2]
[315553965,1709125834600,-500.0,0.00019178,2]
[315553966,1709125834609,-205.18498221,0.00019178,2]
[315553967,1709125834619,-1646.77,0.00019178,2]
[315553968,1709125834628,-500.66855698,0.00019178,2]
[315553969,1709125834638,-501.00203863,0.00019178,2]
[315553970,1709125834647,-500.0,0.00019178,2]
[315553971,1709125834656,-165.979981,0.00019178,2]
[315553972,1709125834666,-162.238785,0.00019178,2]
[315553973,1709125834676,-166.666666,0.00019178,2]
[315553974,1709125834685,-516.38813872,0.00019261,2]
[315553975,1709125834695,-2508.9813286,0.0001929,2]
[315553976,1709125834706,-178.23653632,0.0001936,2]
[315553977,1709125834716,-155.5549192,0.0001936,2]
[315553978,1709125834726,-286.02691664,0.0001936,2]
[315553979,1709125834735,-500.0,0.00019361,2]
[315553980,1709125834745,-500.0,0.00019361,2]
[315553981,1709125834757,-500.0,0.00019361,2]
[315553982,1709125834766,-500.0,0.00019361,2]
[315553983,1709125834778,-268.6806967,0.00019361,2]
[315553984,1709125834788,-500.0,0.00019361,2]
[315553985,1709125834797,-1066.48620471,0.00019361,2]
[315553986,1709125834807,-500.0,0.00019361,2]
[315553987,1709125834821,-1066.48620471,0.00019361,2]
[315553988,1709125834830,-500.0,0.00019361,2]
[315553989,1709125834840,-163.64940296,0.00019361,2]
[315553990,1709125834851,-1066.48620471,0.00019361,2]
[315553991,1709125834862,-1066.48620471,0.00019361,2]
[315553992,1709125834874,-500.0,0.00019361,2]
[315553993,1709125834885,-1066.48620471,0.00019361,2]
[315553994,1709125834895,-500.0,0.00019361,2]
[315553995,1709125834906,-1066.48620471,0.00019361,2]
[315553996,1709125834916,-500.0,0.00019361,2]
[315553997,1709125834926,-1066.48620471,0.00019361,2]
[315553998,1709125834936,-500.0,0.00019361,2]
[315553999,1709125834946,-1066.48620471,0.00019361,2]
[315554000,1709125834956,-500.0,0.00019361,2]
[315554001,1709125834966,-1066.48620471,0.00019361,2]
[315554002,1709125834975,-500.0,0.00019361,2]
[315554003,1709125834984,-1066.48620471,0.00019361,2]
[315554004,1709125834993,-300.0,0.00019361,2]
[315554005,1709125835004,-1066.48620471,0.00019361,2]
[315554006,1709125835013,-500.0,0.00019361,2]
[315554007,1709125835022,-1066.48620471,0.00019361,2]
[315554008,1709125835031,-1066.48620471,0.00019361,2]
[315554009,1709125835039,-1066.48620471,0.00019361,2]
[315554010,1709125835049,-1066.48620471,0.00019361,2]
[315554011,1709125835057,-1066.48620471,0.00019361,2]
[315554012,1709125835067,-1066.48620471,0.00019361,2]
[315554013,1709125835076,-1066.48620471,0.00019361,2]
[315554014,1709125835085,-1066.48620471,0.00019361,2]
[315554015,1709125835094,-1066.48620471,0.00019361,2]
[315554016,1709125835104,-1066.48620471,0.00019361,2]
[315554017,1709125835113,-500.0,0.00019361,2]
[315554018,1709125835122,-1066.48620471,0.00019361,2]
[315554019,1709125835131,-1066.48620471,0.00019361,2]
[315554020,1709125835140,-1066.48620471,0.00019361,2]
[315554021,1709125835149,-500.0,0.00019361,2]
[315554022,1709125835159,-1066.48620471,0.00019361,2]
[315554023,1709125835168,-1066.48620471,0.00019361,2]
[315554024,1709125835177,-500.0,0.00019361,2]
[315554025,1709125835187,-1066.48620471,0.00019361,2]
[315554026,1709125835196,-1066.48620471,0.00019361,2]
[315554027,1709125835205,-1066.48620471,0.00019361,2]
[315554028,1709125835214,-1066.48620471,0.00019361,2]
[315554029,1709125835223,-1066.48620471,0.00019361,2]
[315554030,1709125835232,-1066.48620471,0.00019361,2]
[315554031,1709125835240,-1066.48620471,0.00019361,2]
[315554032,1709125835253,-1066.48620471,0.00019361,2]
[315554033,1709125835263,-1066.48620471,0.00019361,2]
[315554034,1709125835272,-1066.48620471,0.00019361,2]
[315554035,1709125835281,-1066.48620471,0.00019361,2]
[315554036,1709125835290,-1066.48620471,0.00019361,2]
[315554037,1709125835299,-1066.48620471,0.00019361,2]
[315554038,1709125835308,-1066.48620471,0.00019361,2]
[315554039,1709125835317,-1066.48620471,0.00019361,2]
[315554040,1709125835325,-1066.48620471,0.00019361,2]
[315554041,1709125835334,-1066.48620471,0.00019361,2]
[315554042,1709125835344,-1066.48620471,0.00019361,2]
[315554043,1709125835353,-1066.48620471,0.00019361,2]
[315554044,1709125835362,-1066.48620471,0.00019361,2]
[315554045,1709125835372,-1066.48620471,0.00019361,2]
[315554046,1709125835381,-1066.48620471,0.00019361,2]
[315554047,1709125835390,-1066.48620471,0.00019361,2]
[315554048,1709125835399,-1066.48620471,0.00019361,2]
[315554049,1709125835408,-1066.48620471,0.00019361,2]
[315554050,1709125835418,-1066.48620471,0.00019361,2]
[315554051,1709125835427,-1066.48620471,0.00019361,2]
[315554052,1709125835436,-1066.48620471,0.00019361,2]
[315554053,1709125835446,-1066.48620471,0.00019361,2]
[315554054,1709125835455,-1066.48620471,0.00019361,2]
[315554055,1709125835465,-1066.48620471,0.00019361,2]
[315554056,1709125835476,-1066.48620471,0.00019361,2]
[315554057,1709125835486,-1066.48620471,0.00019361,2]
[315554058,1709125835497,-1047.09554643,0.00019361,2]
[315554059,1709125835509,-1047.09554643,0.00019361,2]